[Event "Late-Titled-Tuesday-Blitz-March-12-2024"]
[Site "Chess.com"]
[Date "2024.03.12"]
[Round "8"]
[White "ritanovikova"]
[Black "Knjazj"]
[Result "1-0"]
[WhiteElo "2268"]
[BlackElo "2014"]
[TimeControl "180+1"]
[EndTime "15:26:22 PDT"]
[Termination "ritanovikova won by resignation"]

1. e4 {[%clk 0:02:58.1]} 1... e5 {[%clk 0:02:58.9]} 2. Nf3 {[%clk 0:02:57.8]}
2... Nc6 {[%clk 0:02:58.6]} 3. Bc4 {[%clk 0:02:58.1]} 3... Bc5 {[%clk
0:02:57.1]} 4. c3 {[%clk 0:02:58.3]} 4... d6 {[%clk 0:02:47.9]} 5. d4 {[%clk
0:02:57.9]} 5... exd4 {[%clk 0:02:47.5]} 6. cxd4 {[%clk 0:02:58.8]} 6... Bb4+
{[%clk 0:02:46.5]} 7. Bd2 {[%clk 0:02:59.2]} 7... Bxd2+ {[%clk 0:02:46.2]} 8.
Nbxd2 {[%clk 0:02:56.9]} 8... Nf6 {[%clk 0:02:44]} 9. O-O {[%clk 0:02:56.2]}
9... O-O {[%clk 0:02:43.8]} 10. e5 {[%clk 0:02:51.3]} 10... dxe5 {[%clk
0:02:42.6]} 11. dxe5 {[%clk 0:02:52.2]} 11... Ng4 {[%clk 0:02:36.1]} 12. Qe2
{[%clk 0:02:47.9]} 12... Re8 {[%clk 0:02:24.4]} 13. Ne4 {[%clk 0:02:28.9]} 13...
Ngxe5 {[%clk 0:02:20.7]} 14. Nxe5 {[%clk 0:02:28]} 14... Rxe5 {[%clk 0:02:12.5]}
15. Rad1 {[%clk 0:02:26.7]} 15... Qe7 {[%clk 0:02:06.1]} 16. f3 {[%clk
0:01:50.8]} 16... Bf5 {[%clk 0:01:55.7]} 17. Qf2 {[%clk 0:01:41.9]} 17... Rf8
{[%clk 0:01:46.1]} 18. Ng3 {[%clk 0:01:39.9]} 18... Be6 {[%clk 0:01:41.4]} 19.
Bxe6 {[%clk 0:01:33.3]} 19... Qxe6 {[%clk 0:01:41.2]} 20. Ne4 {[%clk 0:01:26.1]}
20... Qxa2 {[%clk 0:01:33.1]} 21. Rd7 {[%clk 0:01:23]} 21... Qa5 {[%clk
0:01:26.9]} 22. Rfd1 {[%clk 0:01:17.7]} 22... h6 {[%clk 0:01:23.8]} 23. Rc1
{[%clk 0:01:12.3]} 23... Rf5 {[%clk 0:01:08.1]} 24. Qc2 {[%clk 0:01:08.5]} 24...
Qe5 {[%clk 0:01:03.7]} 25. Ng3 {[%clk 0:01:04]} 25... Rf6 {[%clk 0:01:02.3]} 26.
Ne4 {[%clk 0:01:02.4]} 26... Qf4 {[%clk 0:00:57.3]} 27. Nxf6+ {[%clk 0:01:00.1]}
27... Qxf6 {[%clk 0:00:54.8]} 28. Rxc7 {[%clk 0:00:57.7]} 28... Qd4+ {[%clk
0:00:53]} 29. Kh1 {[%clk 0:00:57.8]} 29... Re8 {[%clk 0:00:44.3]} 30. Rxb7
{[%clk 0:00:51.7]} 30... Qe5 {[%clk 0:00:41.9]} 31. h3 {[%clk 0:00:43.7]} 31...
Nd4 {[%clk 0:00:40.7]} 32. Qc7 {[%clk 0:00:40.6]} 32... Qf6 {[%clk 0:00:29.6]}
33. Qd7 {[%clk 0:00:35.5]} 33... Ne2 {[%clk 0:00:28.3]} 34. Qxe8+ {[%clk
0:00:34.4]} 34... Kh7 {[%clk 0:00:26.7]} 35. Qxe2 {[%clk 0:00:35.3]} 35... Qf4
{[%clk 0:00:25.1]} 36. Qe4+ {[%clk 0:00:35.2]} 36... Qxe4 {[%clk 0:00:24.3]} 37.
fxe4 {[%clk 0:00:36.1]} 1-0

[Event "Late-Titled-Tuesday-Blitz-March-12-2024"]
[Site "Chess.com"]
[Date "2024.03.12"]
[Round "8"]
[White "Casablanca"]
[Black "jstopa4"]
[Result "1-0"]
[WhiteElo "2577"]
[BlackElo "2736"]
[TimeControl "180+1"]
[EndTime "15:26:24 PDT"]
[Termination "Casablanca won by resignation"]

1. d4 {[%clk 0:03:00.9]} 1... Nf6 {[%clk 0:02:14]} 2. Bg5 {[%clk 0:03:00.4]}
2... Ne4 {[%clk 0:02:12.7]} 3. Bf4 {[%clk 0:03:00.8]} 3... d5 {[%clk 0:02:13]}
4. e3 {[%clk 0:03:01.1]} 4... Bf5 {[%clk 0:02:13.1]} 5. Bd3 {[%clk 0:03:01.8]}
5... e6 {[%clk 0:02:12.9]} 6. Nd2 {[%clk 0:03:01.4]} 6... Nd7 {[%clk 0:02:11.1]}
7. f3 {[%clk 0:02:38.1]} 7... Nxd2 {[%clk 0:02:02.2]} 8. Qxd2 {[%clk 0:02:39]}
8... Bxd3 {[%clk 0:02:01.6]} 9. cxd3 {[%clk 0:02:36.8]} 9... c6 {[%clk
0:01:59.8]} 10. Ne2 {[%clk 0:02:36.6]} 10... Qb6 {[%clk 0:01:57.4]} 11. O-O
{[%clk 0:02:35.6]} 11... Bb4 {[%clk 0:01:56.9]} 12. Qc2 {[%clk 0:02:35.3]} 12...
O-O {[%clk 0:01:56.4]} 13. a3 {[%clk 0:02:35.9]} 13... Be7 {[%clk 0:01:56]} 14.
e4 {[%clk 0:02:33]} 14... a5 {[%clk 0:01:53.4]} 15. Be3 {[%clk 0:02:30.1]} 15...
a4 {[%clk 0:01:45.1]} 16. Rac1 {[%clk 0:02:29]} 16... Qa6 {[%clk 0:01:36.5]} 17.
f4 {[%clk 0:02:21.3]} 17... f5 {[%clk 0:01:34.7]} 18. h3 {[%clk 0:02:10.1]}
18... Nf6 {[%clk 0:01:23.7]} 19. e5 {[%clk 0:02:07.6]} 19... Nd7 {[%clk
0:01:23.4]} 20. g4 {[%clk 0:02:07.7]} 20... g6 {[%clk 0:01:20.8]} 21. gxf5
{[%clk 0:02:07.1]} 21... gxf5 {[%clk 0:01:20.5]} 22. Kh2 {[%clk 0:02:06.4]}
22... Kh8 {[%clk 0:01:20.5]} 23. Rg1 {[%clk 0:02:06.6]} 23... Rg8 {[%clk
0:01:20.6]} 24. Nc3 {[%clk 0:02:01.4]} 24... Nb6 {[%clk 0:01:13]} 25. Bf2 {[%clk
0:01:56.1]} 25... Rae8 {[%clk 0:01:04.2]} 26. Qe2 {[%clk 0:01:56.1]} 26... Qa8
{[%clk 0:01:00.5]} 27. Qh5 {[%clk 0:01:55.4]} 27... Qc8 {[%clk 0:00:39.5]} 28.
Bh4 {[%clk 0:01:53.8]} 28... Qd8 {[%clk 0:00:37.4]} 29. Bxe7 {[%clk 0:01:42.5]}
29... Qxe7 {[%clk 0:00:37.4]} 30. Qh6 {[%clk 0:01:41.5]} 30... Qf7 {[%clk
0:00:34.3]} 31. Rcf1 {[%clk 0:01:22.3]} 31... Rg6 {[%clk 0:00:33.9]} 32. Rxg6
{[%clk 0:01:21.8]} 32... Qxg6 {[%clk 0:00:33.9]} 33. Qxg6 {[%clk 0:01:19.5]}
33... hxg6 {[%clk 0:00:34]} 34. Kg3 {[%clk 0:01:20.1]} 34... Kg7 {[%clk
0:00:34.4]} 35. Rb1 {[%clk 0:01:15.3]} 35... Ra8 {[%clk 0:00:32.4]} 36. b4
{[%clk 0:01:12.8]} 36... Nd7 {[%clk 0:00:21.9]} 37. Rc1 {[%clk 0:00:58.7]} 37...
b5 {[%clk 0:00:20.1]} 38. Nb1 {[%clk 0:00:58.3]} 38... Rc8 {[%clk 0:00:17.3]}
39. Nd2 {[%clk 0:00:59.2]} 39... Nb8 {[%clk 0:00:16.6]} 40. Nf3 {[%clk
0:00:59.7]} 40... Re8 {[%clk 0:00:16.2]} 41. Ng5 {[%clk 0:00:58.8]} 41... Kf8
{[%clk 0:00:16.6]} 42. Nh7+ {[%clk 0:00:56.8]} 42... Ke7 {[%clk 0:00:16.6]} 43.
Nf6 {[%clk 0:00:52.3]} 43... Rh8 {[%clk 0:00:17.5]} 44. Rc2 {[%clk 0:00:50.9]}
44... Rh6 {[%clk 0:00:17.2]} 45. Ng8+ {[%clk 0:00:48.2]} 45... Kf8 {[%clk
0:00:15.8]} 46. Nxh6 {[%clk 0:00:49.1]} 46... Kg7 {[%clk 0:00:16.4]} 47. Ng4
{[%clk 0:00:49.4]} 47... fxg4 {[%clk 0:00:16.3]} 48. hxg4 {[%clk 0:00:50.3]} 1-0

[Event "Late-Titled-Tuesday-Blitz-March-12-2024"]
[Site "Chess.com"]
[Date "2024.03.12"]
[Round "8"]
[White "xasid81"]
[Black "mac0504"]
[Result "1-0"]
[WhiteElo "2585"]
[BlackElo "2704"]
[TimeControl "180+1"]
[EndTime "15:26:25 PDT"]
[Termination "xasid81 won on time"]

1. f4 {[%clk 0:03:00.9]} 1... Nh6 {[%clk 0:02:59.7]} 2. Nf3 {[%clk 0:03:00.6]}
2... d5 {[%clk 0:03:00.1]} 3. b3 {[%clk 0:02:59.4]} 3... Nf5 {[%clk 0:03:00.4]}
4. Bb2 {[%clk 0:02:59.4]} 4... a5 {[%clk 0:03:01]} 5. a4 {[%clk 0:02:59.3]} 5...
h5 {[%clk 0:03:00.2]} 6. e3 {[%clk 0:02:54.6]} 6... h4 {[%clk 0:02:53]} 7. Be2
{[%clk 0:02:52.5]} 7... e6 {[%clk 0:02:35.9]} 8. Nc3 {[%clk 0:02:49.9]} 8... Bc5
{[%clk 0:02:33]} 9. Nb5 {[%clk 0:02:48.8]} 9... f6 {[%clk 0:02:30.1]} 10. Nbd4
{[%clk 0:02:47.8]} 10... Nc6 {[%clk 0:02:24.4]} 11. Nxf5 {[%clk 0:02:46.7]}
11... exf5 {[%clk 0:02:24.8]} 12. O-O {[%clk 0:02:43.5]} 12... Bd7 {[%clk
0:02:21.2]} 13. c4 {[%clk 0:02:42.4]} 13... dxc4 {[%clk 0:02:16.1]} 14. Bxc4
{[%clk 0:02:42]} 14... Qe7 {[%clk 0:02:16.2]} 15. d4 {[%clk 0:02:37.8]} 15...
Bd6 {[%clk 0:02:11.3]} 16. Re1 {[%clk 0:02:35.8]} 16... O-O-O {[%clk 0:02:10.8]}
17. h3 {[%clk 0:02:29.8]} 17... Nb4 {[%clk 0:02:09.8]} 18. Bc3 {[%clk
0:02:21.3]} 18... Kb8 {[%clk 0:02:09.5]} 19. Qe2 {[%clk 0:02:14.1]} 19... g5
{[%clk 0:02:08.3]} 20. d5 {[%clk 0:02:03.5]} 20... g4 {[%clk 0:01:57.6]} 21. Nd4
{[%clk 0:02:00.7]} 21... gxh3 {[%clk 0:01:55]} 22. gxh3 {[%clk 0:02:01.6]} 22...
Rdg8+ {[%clk 0:01:50.6]} 23. Kh2 {[%clk 0:02:01.7]} 23... Rg3 {[%clk 0:01:44.6]}
24. Ne6 {[%clk 0:02:00.5]} 24... Nxd5 {[%clk 0:01:37.2]} 25. Bxd5 {[%clk
0:01:57.4]} 25... Bxe6 {[%clk 0:01:37.5]} 26. Bf3 {[%clk 0:01:42.7]} 26... Rhg8
{[%clk 0:01:31.6]} 27. Rg1 {[%clk 0:01:41.9]} 27... Qg7 {[%clk 0:01:15.2]} 28.
Rg2 {[%clk 0:01:33.6]} 28... Rxg2+ {[%clk 0:01:05.4]} 29. Bxg2 {[%clk
0:01:34.5]} 29... Qg3+ {[%clk 0:01:03.8]} 30. Kh1 {[%clk 0:01:34.9]} 30... Bc5
{[%clk 0:00:31.2]} 31. Qf3 {[%clk 0:01:23.1]} 31... Qxf3 {[%clk 0:00:29.6]} 32.
Bxf3 {[%clk 0:01:24]} 32... Rg3 {[%clk 0:00:29.2]} 33. Bg2 {[%clk 0:01:17.5]}
33... Rxe3 {[%clk 0:00:27]} 34. Bxf6 {[%clk 0:01:16.8]} 34... Bxb3 {[%clk
0:00:20.3]} 35. Bxh4 {[%clk 0:01:15.3]} 35... Bb6 {[%clk 0:00:11.8]} 36. Bf6
{[%clk 0:01:12.9]} 36... c5 {[%clk 0:00:05.8]} 37. h4 {[%clk 0:01:05.2]} 37...
c4 {[%clk 0:00:06.2]} 38. Rb1 {[%clk 0:01:01.6]} 38... Ka7 {[%clk 0:00:01.7]}
39. h5 {[%clk 0:00:55.2]} 39... Re6 {[%clk 0:00:02.3]} 40. Bg7 {[%clk
0:00:55.2]} 40... Bc7 {[%clk 0:00:01.3]} 41. h6 {[%clk 0:00:52.6]} 41... Bxf4
{[%clk 0:00:01]} 42. h7 {[%clk 0:00:53.1]} 1-0

[Event "Late-Titled-Tuesday-Blitz-March-12-2024"]
[Site "Chess.com"]
[Date "2024.03.12"]
[Round "8"]
[White "Nick12772"]
[Black "MalyDominator"]
[Result "0-1"]
[WhiteElo "2360"]
[BlackElo "2546"]
[TimeControl "180+1"]
[EndTime "15:26:25 PDT"]
[Termination "MalyDominator won by resignation"]

1. Nf3 {[%clk 0:03:00.9]} 1... Nf6 {[%clk 0:02:27.7]} 2. g3 {[%clk 0:03:01.8]}
2... g6 {[%clk 0:02:27.5]} 3. Bg2 {[%clk 0:03:01.1]} 3... Bg7 {[%clk 0:02:27.9]}
4. O-O {[%clk 0:03:01.8]} 4... O-O {[%clk 0:02:20.3]} 5. c4 {[%clk 0:03:02.7]}
5... d6 {[%clk 0:02:20.5]} 6. Nc3 {[%clk 0:03:03.2]} 6... Nc6 {[%clk 0:02:21]}
7. d3 {[%clk 0:03:03.8]} 7... e5 {[%clk 0:02:21.4]} 8. Rb1 {[%clk 0:03:04.1]}
8... a5 {[%clk 0:02:21.2]} 9. a3 {[%clk 0:03:03.8]} 9... Bg4 {[%clk 0:02:21.4]}
10. b4 {[%clk 0:03:03.7]} 10... axb4 {[%clk 0:02:21.3]} 11. axb4 {[%clk
0:03:04.6]} 11... Ne8 {[%clk 0:02:16.9]} 12. b5 {[%clk 0:03:02.8]} 12... Ne7
{[%clk 0:02:14.9]} 13. Bg5 {[%clk 0:03:02.1]} 13... f6 {[%clk 0:02:14.2]} 14.
Bd2 {[%clk 0:03:02.5]} 14... c6 {[%clk 0:02:13.7]} 15. Ne1 {[%clk 0:02:51.5]}
15... Kh8 {[%clk 0:02:08.3]} 16. Nc2 {[%clk 0:02:49.3]} 16... d5 {[%clk
0:02:06.9]} 17. bxc6 {[%clk 0:02:47.1]} 17... bxc6 {[%clk 0:02:07.1]} 18. cxd5
{[%clk 0:02:47.1]} 18... cxd5 {[%clk 0:02:08]} 19. d4 {[%clk 0:02:34.9]} 19...
e4 {[%clk 0:02:05.8]} 20. Ne3 {[%clk 0:02:26.2]} 20... Be6 {[%clk 0:02:05.1]}
21. Nb5 {[%clk 0:02:23.3]} 21... f5 {[%clk 0:02:01.7]} 22. Bb4 {[%clk
0:02:19.8]} 22... Rb8 {[%clk 0:01:56.4]} 23. Na7 {[%clk 0:02:08]} 23... Nd6
{[%clk 0:01:52.8]} 24. Ba3 {[%clk 0:01:52.8]} 24... f4 {[%clk 0:01:43.8]} 25.
Nc2 {[%clk 0:01:36.2]} 25... Rxb1 {[%clk 0:01:35]} 26. Qxb1 {[%clk 0:01:35.9]}
26... Nc4 {[%clk 0:01:35.4]} 27. Rd1 {[%clk 0:01:18.6]} 27... Bg4 {[%clk
0:01:26.6]} 28. Bxe7 {[%clk 0:00:57.7]} 28... Qxe7 {[%clk 0:01:26]} 29. Nc6
{[%clk 0:00:58.2]} 29... Qd6 {[%clk 0:01:21.1]} 30. Ne5 {[%clk 0:00:53.2]} 30...
Nxe5 {[%clk 0:01:18.7]} 31. dxe5 {[%clk 0:00:53]} 31... Qxe5 {[%clk 0:01:19]}
32. Nd4 {[%clk 0:00:48.5]} 32... e3 {[%clk 0:01:17.8]} 33. f3 {[%clk 0:00:40.9]}
33... Bd7 {[%clk 0:00:55.2]} 34. g4 {[%clk 0:00:36.5]} 34... Ba4 {[%clk
0:00:51.1]} 35. Rd3 {[%clk 0:00:32.8]} 35... Rb8 {[%clk 0:00:48.4]} 36. Qa1
{[%clk 0:00:32.8]} 36... Bb5 {[%clk 0:00:26.2]} 37. Rd1 {[%clk 0:00:27.3]} 37...
Bxe2 {[%clk 0:00:25]} 38. Nxe2 {[%clk 0:00:27.1]} 38... Qxa1 {[%clk 0:00:24.7]}
39. Rxa1 {[%clk 0:00:28]} 39... Bxa1 {[%clk 0:00:25.1]} 0-1

[Event "Late-Titled-Tuesday-Blitz-March-12-2024"]
[Site "Chess.com"]
[Date "2024.03.12"]
[Round "8"]
[White "David_ATM"]
[Black "Boorchess"]
[Result "0-1"]
[WhiteElo "2386"]
[BlackElo "2564"]
[TimeControl "180+1"]
[EndTime "15:26:28 PDT"]
[Termination "Boorchess won on time"]

1. e4 {[%clk 0:03:00.9]} 1... e5 {[%clk 0:02:26.5]} 2. Nf3 {[%clk 0:03:00.6]}
2... Nf6 {[%clk 0:02:26.7]} 3. Nc3 {[%clk 0:03:00.5]} 3... Nc6 {[%clk
0:02:26.5]} 4. Bb5 {[%clk 0:03:01]} 4... Nd4 {[%clk 0:02:26.3]} 5. Bc4 {[%clk
0:02:59.5]} 5... Bc5 {[%clk 0:02:26.3]} 6. d3 {[%clk 0:02:58]} 6... d6 {[%clk
0:02:24.6]} 7. Nxd4 {[%clk 0:02:58]} 7... Bxd4 {[%clk 0:02:24.4]} 8. Bg5 {[%clk
0:02:57.1]} 8... h6 {[%clk 0:02:23.7]} 9. Bh4 {[%clk 0:02:52]} 9... c6 {[%clk
0:02:23.4]} 10. a3 {[%clk 0:02:48.4]} 10... b5 {[%clk 0:02:21.1]} 11. Ba2 {[%clk
0:02:48.5]} 11... a5 {[%clk 0:02:21]} 12. h3 {[%clk 0:02:09.4]} 12... Qe7 {[%clk
0:02:14.4]} 13. Qd2 {[%clk 0:02:04.2]} 13... g5 {[%clk 0:02:10.5]} 14. Bg3
{[%clk 0:02:03.9]} 14... Nh5 {[%clk 0:02:09.2]} 15. Bh2 {[%clk 0:01:54.7]} 15...
Nf4 {[%clk 0:02:06.6]} 16. f3 {[%clk 0:01:52.2]} 16... h5 {[%clk 0:02:04.4]} 17.
Bg1 {[%clk 0:01:52.4]} 17... Bxg1 {[%clk 0:01:58.2]} 18. Rxg1 {[%clk 0:01:53.3]}
18... g4 {[%clk 0:01:57.6]} 19. hxg4 {[%clk 0:01:47.9]} 19... hxg4 {[%clk
0:01:57.2]} 20. d4 {[%clk 0:01:48.4]} 20... gxf3 {[%clk 0:01:47.3]} 21. gxf3
{[%clk 0:01:49.3]} 21... Qh4+ {[%clk 0:01:46.5]} 22. Kd1 {[%clk 0:01:45.9]}
22... Be6 {[%clk 0:01:21.6]} 23. d5 {[%clk 0:01:29.3]} 23... cxd5 {[%clk
0:01:20.8]} 24. Bxd5 {[%clk 0:01:29.4]} 24... Bxd5 {[%clk 0:01:09.1]} 25. Nxd5
{[%clk 0:01:30.3]} 25... Nxd5 {[%clk 0:01:06.5]} 26. Qxd5 {[%clk 0:01:31.2]}
26... Ke7 {[%clk 0:01:01.4]} 27. Qd2 {[%clk 0:00:45.6]} 27... Rhg8 {[%clk
0:00:56.4]} 28. Re1 {[%clk 0:00:28.8]} 28... Qh3 {[%clk 0:00:51.4]} 29. Qc3
{[%clk 0:00:11.9]} 29... Rac8 {[%clk 0:00:44.5]} 30. Qxa5 {[%clk 0:00:04.2]}
30... Qxf3+ {[%clk 0:00:40]} 31. Kc1 {[%clk 0:00:04.7]} 31... Rg2 {[%clk
0:00:38.4]} 32. Qa7+ {[%clk 0:00:02.9]} 32... Ke6 {[%clk 0:00:36]} 33. Kb1
{[%clk 0:00:03.4]} 33... Rcxc2 {[%clk 0:00:33.8]} 34. Ra2 {[%clk 0:00:03.5]}
34... Qb3 {[%clk 0:00:32]} 0-1

[Event "Late-Titled-Tuesday-Blitz-March-12-2024"]
[Site "Chess.com"]
[Date "2024.03.12"]
[Round "8"]
[White "rasmussvane"]
[Black "DavidGavrilescu18"]
[Result "1-0"]
[WhiteElo "2948"]
[BlackElo "2769"]
[TimeControl "180+1"]
[EndTime "15:26:30 PDT"]
[Termination "rasmussvane won by checkmate"]

1. d4 {[%clk 0:03:00.9]} 1... d5 {[%clk 0:02:57.8]} 2. Nf3 {[%clk 0:02:59.8]}
2... Nf6 {[%clk 0:02:57.9]} 3. c3 {[%clk 0:02:50.8]} 3... c5 {[%clk 0:02:50.6]}
4. dxc5 {[%clk 0:02:49.7]} 4... e6 {[%clk 0:02:50.2]} 5. Be3 {[%clk 0:02:44.5]}
5... a5 {[%clk 0:02:49.4]} 6. c4 {[%clk 0:02:39.7]} 6... Nc6 {[%clk 0:02:42.6]}
7. Nc3 {[%clk 0:02:08.7]} 7... Ng4 {[%clk 0:01:44.4]} 8. Bg5 {[%clk 0:01:15.6]}
8... f6 {[%clk 0:01:28.7]} 9. cxd5 {[%clk 0:01:12.6]} 9... Bxc5 {[%clk
0:01:18.3]} 10. e3 {[%clk 0:01:05]} 10... Nb4 {[%clk 0:00:57.6]} 11. Bb5+ {[%clk
0:00:39.5]} 11... Kf7 {[%clk 0:00:45.9]} 12. Bh4 {[%clk 0:00:35]} 12... Nxd5
{[%clk 0:00:44.1]} 13. Qe2 {[%clk 0:00:26.4]} 13... Nxc3 {[%clk 0:00:39]} 14.
bxc3 {[%clk 0:00:26.6]} 14... h5 {[%clk 0:00:31.2]} 15. h3 {[%clk 0:00:26.1]}
15... Nh6 {[%clk 0:00:30.9]} 16. Ne5+ {[%clk 0:00:24]} 16... Kg8 {[%clk
0:00:24.8]} 17. Qxh5 {[%clk 0:00:15.8]} 17... Qc7 {[%clk 0:00:11.3]} 18. Ng6
{[%clk 0:00:07.5]} 18... Rh7 {[%clk 0:00:11.5]} 19. Bg3 {[%clk 0:00:06.7]} 19...
Bd6 {[%clk 0:00:11.9]} 20. Bxd6 {[%clk 0:00:06.4]} 20... Qxc3+ {[%clk
0:00:09.5]} 21. Ke2 {[%clk 0:00:07]} 21... Qb2+ {[%clk 0:00:07.2]} 22. Kf3
{[%clk 0:00:06.8]} 22... Bd7 {[%clk 0:00:02]} 23. Bxd7 {[%clk 0:00:05.9]} 23...
Nf5 {[%clk 0:00:01.9]} 24. Bxe6# {[%clk 0:00:06]} 1-0

[Event "Late-Titled-Tuesday-Blitz-March-12-2024"]
[Site "Chess.com"]
[Date "2024.03.12"]
[Round "8"]
[White "Aram7Adam"]
[Black "1g60-1"]
[Result "0-1"]
[WhiteElo "2427"]
[BlackElo "2342"]
[TimeControl "180+1"]
[EndTime "15:26:31 PDT"]
[Termination "1g60-1 won by resignation"]

1. e4 {[%clk 0:03:00]} 1... e6 {[%clk 0:02:59.3]} 2. d4 {[%clk 0:02:59.5]} 2...
d5 {[%clk 0:02:59.6]} 3. Nd2 {[%clk 0:03:00.1]} 3... Nf6 {[%clk 0:02:59.7]} 4.
e5 {[%clk 0:03:00.2]} 4... Nfd7 {[%clk 0:03:00.2]} 5. Ngf3 {[%clk 0:03:00.9]}
5... c5 {[%clk 0:03:00.1]} 6. c3 {[%clk 0:03:01.5]} 6... Nc6 {[%clk 0:03:00.4]}
7. Bd3 {[%clk 0:03:02]} 7... Be7 {[%clk 0:02:58.4]} 8. O-O {[%clk 0:03:01.6]}
8... g5 {[%clk 0:02:58.3]} 9. dxc5 {[%clk 0:03:01.7]} 9... Nxc5 {[%clk
0:02:57.1]} 10. Bb5 {[%clk 0:03:01.7]} 10... Bd7 {[%clk 0:02:55.5]} 11. Bxc6
{[%clk 0:02:59.2]} 11... bxc6 {[%clk 0:02:54.7]} 12. Nd4 {[%clk 0:03:00.1]}
12... h5 {[%clk 0:02:51.8]} 13. f4 {[%clk 0:02:59.6]} 13... gxf4 {[%clk
0:02:44.5]} 14. Rxf4 {[%clk 0:02:58.2]} 14... Bg5 {[%clk 0:02:44.2]} 15. Rf1
{[%clk 0:02:56.7]} 15... Nd3 {[%clk 0:02:38.1]} 16. N2b3 {[%clk 0:02:45.5]}
16... Nxc1 {[%clk 0:02:35.2]} 17. Nxc1 {[%clk 0:02:45.5]} 17... c5 {[%clk
0:02:28.6]} 18. Nf3 {[%clk 0:02:45.4]} 18... Be3+ {[%clk 0:02:22.8]} 19. Kh1
{[%clk 0:02:45]} 19... Bb5 {[%clk 0:02:14.9]} 20. Nd3 {[%clk 0:02:44.4]} 20...
h4 {[%clk 0:02:04]} 21. a4 {[%clk 0:02:39.6]} 21... Ba6 {[%clk 0:01:59.5]} 22.
Re1 {[%clk 0:02:37.4]} 22... Bxd3 {[%clk 0:01:39.7]} 23. Qxd3 {[%clk 0:02:31.5]}
23... Bf2 {[%clk 0:01:39.9]} 24. Rf1 {[%clk 0:02:31.1]} 24... c4 {[%clk
0:01:38.9]} 25. Qd2 {[%clk 0:02:25.5]} 25... Bc5 {[%clk 0:01:33.7]} 26. Qf4
{[%clk 0:02:23.7]} 26... h3 {[%clk 0:01:29]} 27. gxh3 {[%clk 0:02:19.5]} 27...
Qe7 {[%clk 0:01:24.6]} 28. b4 {[%clk 0:02:09.7]} 28... cxb3 {[%clk 0:01:15.1]}
29. Ng5 {[%clk 0:02:08.8]} 29... O-O-O {[%clk 0:01:12.8]} 30. Rab1 {[%clk
0:02:07.9]} 30... Qb7 {[%clk 0:00:54]} 31. Qxf7 {[%clk 0:02:00.2]} 31... Rd7
{[%clk 0:00:50.8]} 32. Qf6 {[%clk 0:01:47.6]} 32... Rf8 {[%clk 0:00:45.3]} 33.
Qxf8+ {[%clk 0:01:43.6]} 33... Bxf8 {[%clk 0:00:45]} 34. Rxf8+ {[%clk
0:01:44.5]} 34... Rd8 {[%clk 0:00:37.5]} 35. Rf7 {[%clk 0:01:39.1]} 35... Qc6
{[%clk 0:00:31.5]} 36. Rxb3 {[%clk 0:01:33.4]} 36... d4+ {[%clk 0:00:31.7]} 37.
Kg1 {[%clk 0:01:30.8]} 37... dxc3 {[%clk 0:00:32]} 38. Rf3 {[%clk 0:00:24]}
38... c2 {[%clk 0:00:28.8]} 39. Rbc3 {[%clk 0:00:22.9]} 39... c1=Q+ {[%clk
0:00:27.8]} 0-1

[Event "Late-Titled-Tuesday-Blitz-March-12-2024"]
[Site "Chess.com"]
[Date "2024.03.12"]
[Round "8"]
[White "KNVB"]
[Black "ValeriyGrinev"]
[Result "1-0"]
[WhiteElo "2780"]
[BlackElo "2606"]
[TimeControl "180+1"]
[EndTime "15:26:33 PDT"]
[Termination "KNVB won by resignation"]

1. d4 {[%clk 0:03:00.9]} 1... d5 {[%clk 0:02:58.8]} 2. Bf4 {[%clk 0:03:00.7]}
2... e6 {[%clk 0:02:58.2]} 3. e3 {[%clk 0:03:01.3]} 3... Nf6 {[%clk 0:02:58.1]}
4. Nf3 {[%clk 0:03:01.9]} 4... Bd6 {[%clk 0:02:58.5]} 5. Nbd2 {[%clk 0:03:02.8]}
5... Bxf4 {[%clk 0:02:56.6]} 6. exf4 {[%clk 0:03:03.7]} 6... c5 {[%clk
0:02:55.9]} 7. dxc5 {[%clk 0:03:04.6]} 7... Qa5 {[%clk 0:02:53.9]} 8. g3 {[%clk
0:03:05.5]} 8... Qxc5 {[%clk 0:02:54]} 9. Bd3 {[%clk 0:03:06.2]} 9... b6 {[%clk
0:02:52.8]} 10. Qe2 {[%clk 0:03:05.7]} 10... a5 {[%clk 0:02:51.9]} 11. Nb3
{[%clk 0:03:05.9]} 11... Qc7 {[%clk 0:02:51.6]} 12. Nbd4 {[%clk 0:03:06.6]}
12... Ba6 {[%clk 0:02:51.5]} 13. Nb5 {[%clk 0:03:07.2]} 13... Bxb5 {[%clk
0:02:49.8]} 14. Bxb5+ {[%clk 0:03:07.5]} 14... Nbd7 {[%clk 0:02:50.4]} 15. O-O
{[%clk 0:02:42.1]} 15... O-O {[%clk 0:02:50.1]} 16. Rfe1 {[%clk 0:02:42.9]}
16... Ne4 {[%clk 0:02:42.2]} 17. c3 {[%clk 0:02:42.7]} 17... Nd6 {[%clk
0:02:30.6]} 18. Bd3 {[%clk 0:02:42.7]} 18... a4 {[%clk 0:02:17.4]} 19. a3 {[%clk
0:02:42.7]} 19... Rab8 {[%clk 0:02:14.8]} 20. Rad1 {[%clk 0:02:35.6]} 20... b5
{[%clk 0:02:14]} 21. h4 {[%clk 0:01:27.2]} 21... g6 {[%clk 0:02:13.5]} 22. h5
{[%clk 0:01:27.2]} 22... Nc4 {[%clk 0:02:05]} 23. hxg6 {[%clk 0:00:13.4]} 23...
hxg6 {[%clk 0:02:05.9]} 24. Bxg6 {[%clk 0:00:14]} 24... fxg6 {[%clk 0:02:06.2]}
25. Qxe6+ {[%clk 0:00:14.5]} 25... Kg7 {[%clk 0:02:05.7]} 26. Ng5 {[%clk
0:00:13.9]} 26... Nc5 {[%clk 0:02:04.6]} 27. Qxd5 {[%clk 0:00:10.1]} 27... Rbe8
{[%clk 0:01:53.9]} 28. Kg2 {[%clk 0:00:03.4]} 28... Nxb2 {[%clk 0:01:41.7]} 29.
Rxe8 {[%clk 0:00:02]} 29... Rxe8 {[%clk 0:01:40.5]} 30. Rh1 {[%clk 0:00:02.7]}
30... Kf6 {[%clk 0:01:07.8]} 31. Rh7 {[%clk 0:00:02.9]} 31... Re7 {[%clk
0:01:03.1]} 32. Qd4+ {[%clk 0:00:03.2]} 32... Kf5 {[%clk 0:01:03.4]} 33. g4+
{[%clk 0:00:02.1]} 33... Kxg4 {[%clk 0:01:02.2]} 34. f5+ {[%clk 0:00:02.2]}
34... Kxg5 {[%clk 0:01:00.6]} 35. Qh4+ {[%clk 0:00:02.3]} 35... Kxf5 {[%clk
0:01:00.6]} 36. Rxe7 {[%clk 0:00:03]} 36... Qc6+ {[%clk 0:01:00.2]} 37. f3
{[%clk 0:00:03.7]} 37... Nbd3 {[%clk 0:00:52.3]} 38. Qg4+ {[%clk 0:00:02.7]}
38... Kf6 {[%clk 0:00:52.3]} 39. Qh4+ {[%clk 0:00:03]} 39... Kf5 {[%clk
0:00:52.6]} 40. Rf7+ {[%clk 0:00:02.6]} 40... Ke5 {[%clk 0:00:50]} 41. Qd4+
{[%clk 0:00:02.9]} 41... Ke6 {[%clk 0:00:45.5]} 42. Rf6+ {[%clk 0:00:03.6]} 1-0